bitfinex/quotes_BTCUSD_20240815
["timestamp","ask_amount","ask_price","bid_price","bid_amount"]
[1723763541260,0.814845,57680.0,57666.0,0.0762]
[1723763541473,0.814845,57680.0,57667.0,0.17155454]
[1723763541474,0.01337735,57673.0,57667.0,0.17155454]
[1723763541690,0.173382,57676.0,57667.0,0.17155454]
[1723763541691,0.17338,57677.0,57667.0,0.17155454]
[1723763541896,0.01335182,57672.0,57667.0,0.17155454]
[1723763542125,0.17338,57677.0,57667.0,0.17155454]
[1723763542358,0.01335566,57676.0,57667.0,0.17155454]
[1723763542608,0.346799,57671.0,57667.0,0.17155454]
[1723763542834,0.006,57673.0,57667.0,0.17155454]
[1723763543602,0.01338898,57676.0,57668.0,0.0792]
[1723763543835,0.641471,57680.0,57670.0,0.0791]
[1723763543836,0.004,57673.0,57670.0,0.0791]
[1723763544073,0.004,57673.0,57672.0,0.520182]
[1723763544311,0.4681,57680.0,57676.0,0.17338]
[1723763544542,0.17427211,57681.0,57676.0,0.34493454]
[1723763544769,0.173372,57680.0,57676.0,0.34493454]
[1723763545677,0.17661246,57679.0,57676.0,0.17155454]
[1723763546122,0.00323846,57679.0,57676.0,0.17155454]
[1723763546400,0.00323846,57679.0,57676.0,0.34493454]
[1723763546629,0.00323846,57679.0,57677.0,0.17155454]
[1723763546856,0.00323846,57679.0,57678.0,0.658728]
[1723763547079,0.008,57680.0,57679.0,0.520119]
[1723763547311,0.008,57680.0,57679.0,1.03841954]
[1723763547538,0.00090311,57681.0,57679.0,0.17155454]
[1723763547761,0.00090311,57681.0,57680.0,0.34492454]
[1723763548924,0.00090311,57681.0,57680.0,0.17155454]
[1723763549149,0.00090311,57681.0,57680.0,0.34492454]
[1723763549375,0.01290311,57681.0,57680.0,0.34492454]
[1723763550048,0.01290311,57681.0,57680.0,0.69166454]
[1723763550294,0.02190311,57681.0,57680.0,0.34492454]
[1723763550528,0.02190311,57681.0,57680.0,0.69166454]
[1723763550757,0.03213891,57681.0,57680.0,0.69166454]
[1723763551460,0.03213891,57681.0,57680.0,1.03840454]
[1723763551684,0.02190311,57681.0,57680.0,1.03840454]
[1723763553028,0.02190311,57681.0,57680.0,0.17155454]
[1723763553499,0.03509142,57681.0,57680.0,0.34492454]
[1723763554678,0.03509142,57681.0,57680.0,0.17155454]
[1723763557200,0.20845842,57681.0,57680.0,0.17155454]
[1723763557423,0.55519242,57681.0,57680.0,0.17155454]
[1723763558534,0.03509142,57681.0,57680.0,0.17155454]
[1723763559439,0.03509142,57681.0,57680.0,0.24765454]
[1723763560750,0.03509142,57681.0,57680.0,1.18000454]
[1723763560959,0.03509142,57681.0,57680.0,1.62674454]
[1723763561171,0.02190311,57681.0,57680.0,1.62674454]
[1723763564000,0.01290311,57681.0,57680.0,1.62674454]
[1723763564210,0.01790311,57681.0,57680.0,1.62674454]
[1723763564431,0.00590311,57681.0,57680.0,1.62674454]
[1723763564863,0.01290311,57681.0,57680.0,1.62674454]
[1723763570038,0.01290311,57681.0,57680.0,1.64974454]
[1723763570256,0.01290311,57681.0,57680.0,1.65274454]
[1723763570465,0.01290311,57681.0,57680.0,1.65074454]
[1723763570874,0.01290311,57681.0,57680.0,1.65274454]
[1723763571521,0.01290311,57681.0,57680.0,1.64974454]
[1723763573261,0.01290311,57681.0,57680.0,1.99648454]
[1723763579529,0.01290311,57681.0,57680.0,1.62674454]
[1723763582002,0.01290311,57681.0,57680.0,1.03840454]
[1723763583129,0.01290311,57681.0,57680.0,0.17155454]
[1723763583372,0.26817011,57681.0,57680.0,0.17155454]
[1723763583603,0.28118417,57681.0,57680.0,0.17155454]
[1723763583835,0.10781717,57681.0,57680.0,0.17155454]
[1723763586524,0.15962958,57681.0,57680.0,0.17155454]
[1723763586735,0.10781717,57681.0,57680.0,0.17155454]
[1723763586947,0.15962958,57681.0,57680.0,0.17155454]
[1723763588328,0.10781717,57681.0,57680.0,0.17155454]
[1723763588538,0.15962958,57681.0,57680.0,0.17155454]
[1723763588973,0.15962958,57681.0,57680.0,0.34492454]
[1723763589192,0.02591717,57681.0,57680.0,1.17970454]
[1723763589416,0.02591717,57681.0,57680.0,1.89204454]
[1723763589633,0.01290311,57681.0,57680.0,1.89404454]
[1723763589851,0.01290311,57681.0,57680.0,2.29178391]
[1723763590307,0.00090311,57694.0,57693.0,1.354617]
[1723763590527,0.00090311,57694.0,57693.0,1.99583354]
[1723763590975,0.00090311,57694.0,57693.0,1.99683354]
[1723763591188,0.00090311,57694.0,57693.0,1.99583354]
[1723763591399,0.00090311,57694.0,57693.0,1.99683354]
[1723763591821,0.00090311,57694.0,57693.0,1.99583354]
[1723763592037,0.00090311,57694.0,57693.0,1.99883354]
[1723763592038,0.00190311,57694.0,57693.0,1.99883354]
[1723763593691,0.00190311,57694.0,57693.0,1.97583354]
[1723763594355,0.00290311,57694.0,57693.0,1.98283354]
[1723763596156,0.00290311,57694.0,57693.0,1.98383354]
[1723763596376,0.00290311,57694.0,57693.0,2.00883354]
[1723763596837,0.00290311,57694.0,57693.0,2.05983291]
[1723763597335,0.00090311,57698.0,57697.0,0.003]
[1723763597537,1.1e-07,57698.0,57697.0,0.84335081]
[1723763597776,1.1e-07,57698.0,57697.0,0.99435018]
[1723763598235,1.1e-07,57698.0,57697.0,1.68762618]
[1723763598479,1.1e-07,57698.0,57697.0,2.72754018]
[1723763598722,0.00100011,57698.0,57697.0,3.08217818]
[1723763599624,0.00100011,57698.0,57697.0,3.57889384]
[1723763599847,0.00200011,57698.0,57697.0,3.59289384]
[1723763600139,0.00100011,57698.0,57697.0,3.57889384]
[1723763600372,1.1e-07,57698.0,57697.0,3.52217818]
[1723763600597,0.001,57698.0,57697.0,3.53853469]
[1723763601020,0.002,57698.0,57697.0,3.55253469]
[1723763601469,0.001,57698.0,57697.0,3.54053469]
[1723763601715,0.001,57698.0,57697.0,3.55453469]
[1723763601929,0.002,57698.0,57697.0,3.93453469]
[1723763602370,0.001,57698.0,57697.0,3.92053469]
[1723763602641,0.002,57698.0,57697.0,3.93453469]
[1723763602899,0.001,57698.0,57697.0,3.92053469]
[1723763603118,0.002,57698.0,57697.0,3.93453469]
[1723763604294,0.002,57698.0,57697.0,3.84875742]
[1723763604504,0.002,57698.0,57697.0,2.95475805]
[1723763604718,0.002,57698.0,57697.0,2.60812005]
[1723763606063,0.002,57698.0,57697.0,2.63112005]
[1723763606312,0.00290311,57698.0,57697.0,2.63112005]
[1723763606557,0.00190311,57698.0,57697.0,2.61712005]
[1723763606802,0.00190311,57698.0,57697.0,2.66811942]
[1723763607289,0.00290311,57698.0,57697.0,2.68211942]
[1723763607928,0.00290311,57698.0,57697.0,2.69115042]
[1723763608650,0.00290311,57698.0,57697.0,3.54115042]
[1723763609366,0.00190311,57698.0,57697.0,3.52715042]
[1723763609607,0.00290311,57698.0,57697.0,3.54115042]
[1723763609841,0.00190311,57698.0,57697.0,3.52715042]
[1723763610332,0.00290311,57698.0,57697.0,3.54115042]
[1723763614255,0.00290311,57698.0,57697.0,3.49015105]
[1723763616475,0.00290311,57698.0,57697.0,2.99341305]
[1723763616714,0.00290311,57698.0,57697.0,2.12041305]
[1723763617164,0.00290311,57698.0,57697.0,1.77881305]
[1723763617377,0.08040311,57698.0,57697.0,1.75445654]
[1723763617873,0.00290311,57698.0,57697.0,1.76845654]
[1723763618089,0.00290311,57698.0,57697.0,1.87917157]
[1723763618321,0.00290311,57698.0,57697.0,1.89085591]
[1723763618534,0.00290311,57698.0,57697.0,2.36049391]
[1723763618741,0.00290311,57698.0,57697.0,2.35649391]
[1723763618955,0.00190311,57698.0,57697.0,1.99985591]
[1723763619169,0.00290311,57698.0,57697.0,2.36049391]
[1723763619395,0.00190311,57698.0,57697.0,2.33249391]
[1723763619630,0.00190311,57698.0,57697.0,2.40901491]
[1723763619846,0.00290311,57698.0,57697.0,2.36901554]
[1723763620056,0.00390311,57698.0,57697.0,2.37901554]
[1723763620713,0.00290311,57698.0,57697.0,2.36901554]
[1723763620938,0.00390311,57698.0,57697.0,2.38201554]
[1723763622250,0.00390311,57698.0,57697.0,2.43301491]
[1723763622472,1.1e-07,57698.0,57697.0,2.91973057]
[1723763622748,0.00110311,57699.0,57698.0,0.05599926]
[1723763622963,0.00110311,57699.0,57698.0,1.06904673]
[1723763623171,0.00110311,57699.0,57698.0,0.62904673]
[1723763623383,0.00110311,57699.0,57698.0,0.52133181]
[1723763624074,0.00210311,57699.0,57698.0,0.53333181]
[1723763624300,0.00210311,57699.0,57698.0,2.09317581]
[1723763624521,0.00210311,57699.0,57698.0,2.43980781]
[1723763625380,0.00310311,57699.0,57698.0,2.44980781]
[1723763631619,0.00310311,57699.0,57698.0,2.45062881]
[1723763632898,0.00310311,57699.0,57698.0,2.99062881]
[1723763634433,0.00310311,57699.0,57698.0,2.45062881]
[1723763636148,0.00310311,57699.0,57698.0,2.50162817]
[1723763638779,0.00310311,57699.0,57698.0,2.31362881]
[1723763639029,0.00310311,57699.0,57698.0,2.31462881]
[1723763640629,0.00310311,57699.0,57698.0,1.88021954]
[1723763640827,0.14810311,57699.0,57698.0,1.40758754]
[1723763641053,0.14810311,57699.0,57698.0,1.06095554]
[1723763641473,0.15942442,57699.0,57698.0,1.06095554]
[1723763641682,0.21127826,57699.0,57698.0,1.06095554]
[1723763641905,0.15842442,57699.0,57698.0,1.04895554]
[1723763642318,0.15842442,57699.0,57698.0,1.04695554]
[1723763642522,0.15842442,57699.0,57698.0,1.05195554]
[1723763642972,0.15842442,57699.0,57698.0,1.04695554]
[1723763643244,0.15842442,57699.0,57698.0,1.39358754]
[1723763643664,0.14710311,57699.0,57698.0,1.39358754]
[1723763643884,0.00210311,57699.0,57698.0,1.39358754]
[1723763644108,0.00210311,57699.0,57698.0,1.93221954]
[1723763644324,0.00210311,57699.0,57698.0,1.93621954]
[1723763644325,0.00110311,57699.0,57698.0,1.93621954]
[1723763644551,0.00110311,57699.0,57698.0,1.94221954]
[1723763644552,0.00210311,57699.0,57698.0,1.94221954]
[1723763644759,0.00210311,57699.0,57698.0,2.29185154]
[1723763644964,0.00210311,57699.0,57698.0,2.28985154]
[1723763645392,0.00210311,57699.0,57698.0,2.29185154]
[1723763645609,0.00210311,57699.0,57698.0,2.30200718]
[1723763645850,0.00210311,57699.0,57698.0,2.30400718]
[1723763646504,0.00210311,57699.0,57698.0,2.36420718]
[1723763650147,0.00210311,57699.0,57698.0,3.2219222]
[1723763650797,0.00210311,57699.0,57698.0,5.0685542]
[1723763651223,0.00110311,57699.0,57698.0,3.5625542]
[1723763651446,0.00110311,57699.0,57698.0,3.63641372]
[1723763651667,0.00210311,57699.0,57698.0,3.65441372]
[1723763652082,1.1e-07,57699.0,57698.0,3.59941436]
[1723763652309,1.1e-07,57699.0,57698.0,3.61341436]
[1723763652514,1.1e-07,57699.0,57698.0,3.66441372]
[1723763652949,1.1e-07,57699.0,57698.0,3.66440541]
[1723763653170,1.1e-07,57699.0,57698.0,2.91005839]
[1723763654770,0.00090322,57699.0,57698.0,2.31785839]
[1723763655011,0.00090322,57699.0,57698.0,2.61037518]
[1723763655251,0.00090322,57699.0,57698.0,1.87037518]
[1723763655488,0.00090322,57699.0,57698.0,1.87137518]
[1723763656479,0.00090322,57699.0,57698.0,1.89437518]
[1723763657327,0.00090322,57699.0,57698.0,1.89337518]
[1723763657767,0.00090322,57699.0,57698.0,1.89637518]
[1723763658235,0.00090322,57699.0,57698.0,1.89337518]
[1723763658937,0.00090322,57699.0,57698.0,1.76021954]
[1723763659175,0.06700322,57699.0,57698.0,1.76021954]
[1723763659428,0.06700322,57699.0,57698.0,1.41358754]
[1723763659429,0.14690322,57699.0,57698.0,1.41358754]
[1723763659675,0.14690322,57699.0,57698.0,0.72032354]
[1723763659903,0.15882865,57699.0,57698.0,0.72032354]
[1723763660141,0.15882865,57699.0,57698.0,0.70632354]
[1723763660378,0.15882865,57699.0,57698.0,0.71532354]
[1723763660611,0.15882865,57699.0,57698.0,1.06195554]
[1723763660846,0.15882865,57699.0,57698.0,1.05295554]
[1723763661064,0.15882865,57699.0,57698.0,1.05895554]
[1723763661739,0.15882854,57699.0,57698.0,1.04495554]
[1723763661982,0.15882854,57699.0,57698.0,1.04995554]
[1723763662197,0.15882854,57699.0,57698.0,1.04495554]
[1723763662656,0.15882854,57699.0,57698.0,1.04895554]
[1723763662902,0.14690311,57699.0,57698.0,1.04895554]
[1723763666681,0.08080311,57699.0,57698.0,1.04895554]
[1723763666901,0.00090311,57699.0,57698.0,1.04895554]
[1723763667531,0.08110311,57699.0,57698.0,1.04895554]
[1723763668150,0.08110311,57699.0,57698.0,1.39558754]
[1723763669205,0.14470311,57699.0,57698.0,1.39558754]
[1723763671573,0.14470311,57699.0,57698.0,1.86521954]
[1723763671574,0.00090311,57699.0,57698.0,1.86521954]
[1723763672861,0.00090311,57699.0,57698.0,2.00401954]
[1723763673079,0.00090311,57699.0,57698.0,2.35165154]
[1723763673303,0.00090311,57699.0,57698.0,2.6746509]
[1723763673545,0.00090311,57699.0,57698.0,2.4066509]
[1723763673764,0.00090311,57699.0,57698.0,2.35565154]
[1723763676945,0.00090311,57699.0,57698.0,2.34965154]
[1723763677379,0.00090311,57699.0,57698.0,2.36365154]
[1723763677587,0.00090311,57699.0,57698.0,2.35965154]
[1723763678001,0.00190311,57699.0,57698.0,2.37365154]
[1723763678428,0.00190311,57699.0,57698.0,2.4246509]
[1723763681745,0.00190311,57699.0,57698.0,2.8746509]
[1723763685242,0.00904201,57713.0,57712.0,0.0669]
[1723763685493,0.5030563,57734.0,57718.0,0.2466]
[1723763685494,1e-08,57719.0,57718.0,0.2466]
[1723763685728,0.5030563,57734.0,57731.0,0.001]
[1723763685976,0.5030563,57734.0,57733.0,0.41415454]
[1723763686223,0.5030563,57734.0,57733.0,0.41315454]
[1723763686457,0.5030563,57734.0,57733.0,0.53715454]
[1723763686695,0.5030563,57734.0,57733.0,0.53615454]
[1723763686918,0.5030563,57734.0,57733.0,0.53915454]
[1723763687611,0.5030563,57734.0,57733.0,0.53615454]
[1723763688121,0.5030563,57734.0,57733.0,0.53715454]
[1723763688337,0.5030563,57734.0,57733.0,0.53915454]
[1723763688792,0.5030563,57734.0,57733.0,1.06678754]
[1723763689056,0.5030563,57734.0,57733.0,1.75663154]
[1723763689269,0.5030563,57734.0,57733.0,1.76763154]
[1723763690329,0.5030563,57734.0,57733.0,2.46247554]
[1723763690766,0.5030063,57734.0,57733.0,2.46247554]
[1723763691390,0.5038273,57734.0,57733.0,2.46247554]
[1723763691612,0.5038273,57734.0,57733.0,2.09005354]
[1723763691868,0.5684273,57734.0,57733.0,2.09005354]
[1723763692069,0.6454273,57734.0,57733.0,1.40203154]
[1723763694132,0.6454273,57734.0,57733.0,1.39203154]
[1723763695233,0.6454273,57734.0,57733.0,1.04560954]
[1723763695448,0.6454273,57734.0,57733.0,1.03760954]
[1723763695663,0.6454273,57734.0,57733.0,1.04160954]
[1723763695868,0.6454273,57734.0,57733.0,1.04360954]
[1723763696502,0.6454273,57734.0,57733.0,1.03760954]
[1723763696723,0.6454273,57734.0,57733.0,1.04160954]
[1723763696935,0.6454273,57734.0,57733.0,1.04360954]
[1723763697145,0.6454273,57734.0,57733.0,1.04160954]
[1723763697354,0.6454273,57734.0,57733.0,1.03960954]
[1723763697558,0.6454273,57734.0,57733.0,0.69318754]
[1723763697990,0.6454273,57734.0,57733.0,1.03960954]
[1723763698695,0.6454273,57734.0,57733.0,1.03760954]
[1723763698954,0.6454273,57734.0,57733.0,1.03960954]
[1723763699203,0.6454273,57734.0,57733.0,1.39003154]
[1723763699435,0.5038273,57734.0,57733.0,1.39003154]
[1723763699652,0.5038273,57734.0,57733.0,1.38603154]
[1723763700114,0.5038273,57734.0,57733.0,1.39103154]
[1723763701310,0.5038273,57734.0,57733.0,1.83745354]
[1723763701527,0.5038273,57734.0,57733.0,1.86045354]
[1723763702620,0.5038273,57734.0,57733.0,1.83745354]
[1723763702842,0.5868273,57734.0,57733.0,1.49103154]
[1723763703734,0.6511273,57734.0,57733.0,0.69818754]
[1723763703952,0.6511273,57734.0,57733.0,0.007]
[1723763704171,0.6511273,57734.0,57733.0,0.180211]
[1723763705308,0.6511273,57734.0,57733.0,0.35176554]
[1723763705521,0.5038273,57734.0,57733.0,0.35176554]
[1723763705746,0.5038273,57734.0,57733.0,0.34676554]
[1723763705980,0.5038273,57734.0,57733.0,0.69318754]
[1723763705981,0.5058273,57734.0,57733.0,0.69318754]
[1723763706192,0.5058273,57734.0,57733.0,1.64913154]
[1723763706413,0.5038273,57734.0,57733.0,2.34197554]
[1723763706628,0.5038273,57734.0,57733.0,2.33897554]
[1723763706845,0.5038273,57734.0,57733.0,2.34197554]
[1723763707284,0.5038273,57734.0,57733.0,2.33997554]
[1723763707499,0.5038273,57734.0,57733.0,2.35397554]
[1723763708878,0.5038273,57734.0,57733.0,2.36797554]
[1723763709559,0.5038273,57734.0,57733.0,2.36497554]
[1723763711779,0.5038273,57734.0,57733.0,2.36597554]
[1723763712016,0.5038273,57734.0,57733.0,2.36497554]
[1723763712669,0.5038273,57734.0,57733.0,2.36597554]
[1723763712893,0.5038273,57734.0,57733.0,2.36797554]
[1723763713589,0.5038273,57734.0,57733.0,2.36789706]
[1723763714282,0.5038273,57734.0,57733.0,2.36989706]
[1723763714509,0.5038273,57734.0,57733.0,3.28822152]
[1723763714721,0.5038273,57734.0,57733.0,3.07822152]
[1723763715164,0.5038273,57734.0,57733.0,2.71222216]
[1723763715803,0.5038273,57734.0,57733.0,2.36580016]
[1723763717082,0.5038273,57734.0,57733.0,2.58580016]
[1723763717307,0.5038273,57734.0,57733.0,2.36680016]
[1723763717948,0.5038273,57734.0,57733.0,2.36880016]
[1723763719823,0.5038273,57734.0,57733.0,2.63084854]
[1723763720006,0.3306173,57734.0,57733.0,2.73856356]
[1723763720281,0.2959753,57734.0,57733.0,2.73856356]
[1723763720524,0.1574073,57734.0,57733.0,2.73856356]
[1723763721501,0.089131,57756.0,57751.0,0.3794]
[1723763721502,0.009031,57756.0,57751.0,0.3794]
[1723763721726,0.009031,57756.0,57751.0,0.67295454]
[1723763722353,0.009031,57756.0,57751.0,0.67595454]
[1723763722591,0.009031,57756.0,57751.0,0.67795454]
[1723763722794,0.009031,57756.0,57751.0,1.40795454]
[1723763723006,0.009031,57756.0,57751.0,1.41795454]
[1723763723215,0.009031,57756.0,57751.0,1.40795454]
[1723763723420,0.009031,57756.0,57751.0,0.69195454]
[1723763723596,0.009031,57756.0,57751.0,0.70595454]
[1723763723839,0.009031,57756.0,57751.0,2.26436754]
[1723763724262,0.009031,57756.0,57751.0,2.61068154]
[1723763724469,0.009031,57756.0,57751.0,2.60568154]
[1723763724674,0.009031,57756.0,57751.0,2.60668154]
[1723763724882,0.009031,57756.0,57751.0,2.60868154]
[1723763725063,0.009031,57756.0,57751.0,2.61068154]
[1723763725319,0.00367552,57779.0,57758.0,0.499336]
[1723763725320,1e-08,57759.0,57758.0,0.499336]
[1723763725532,1e-08,57759.0,57758.0,2.25903454]
[1723763725744,1e-08,57759.0,57758.0,3.74412254]
[1723763725952,1e-08,57759.0,57758.0,3.74612254]
[1723763726158,1e-08,57759.0,57758.0,2.93612254]
[1723763726397,0.04610001,57778.0,57777.0,1.211553]
[1723763726609,0.04610001,57778.0,57777.0,1.38310754]
[1723763727063,0.0002,57779.0,57778.0,1.211532]
[1723763727280,0.0002,57779.0,57778.0,1.72923854]
[1723763727698,0.0002,57779.0,57778.0,1.38308654]
[1723763729597,0.0002,57779.0,57778.0,1.38908654]
[1723763730075,0.0002,57779.0,57778.0,1.39008654]
[1723763730288,0.0002,57779.0,57778.0,1.69178654]
[1723763730492,0.0002,57779.0,57778.0,1.79868654]
[1723763730702,0.0002,57779.0,57778.0,1.89968654]
[1723763730912,0.00821,57792.0,57791.0,0.3242]
[1723763731139,0.00821,57792.0,57791.0,1.00572854]
[1723763731354,0.00821,57792.0,57791.0,1.13673954]
[1723763731559,0.00821,57792.0,57791.0,1.48281354]
[1723763731978,0.00821,57792.0,57791.0,1.82888754]
[1723763732191,0.00821,57792.0,57791.0,2.07048754]
[1723763732869,0.00821,57792.0,57791.0,2.08148754]
[1723763733503,0.00821,57792.0,57791.0,2.09048754]
[1723763734783,0.00821,57792.0,57791.0,1.84888754]
[1723763735851,0.00821,57792.0,57791.0,1.50281354]
[1723763736067,0.08421,57792.0,57791.0,0.02]
[1723763736283,0.08421,57792.0,57791.0,0.885185]
[1723763736726,0.08421,57792.0,57791.0,0.528111]
[1723763736938,0.08421,57792.0,57790.0,0.173038]
[1723763737144,0.08421,57792.0,57791.0,0.179037]
[1723763737347,0.08421,57792.0,57791.0,0.525111]
[1723763737550,0.08421,57792.0,57791.0,0.006]
[1723763738003,0.08421,57792.0,57791.0,0.177037]
[1723763738211,0.08421,57792.0,57791.0,0.004]
[1723763738212,0.257244,57792.0,57791.0,0.004]
[1723763738423,0.60678752,57792.0,57791.0,0.004]
[1723763738866,0.249039,57791.0,57787.0,0.173048]
[1723763739103,0.07947552,57790.0,57786.0,0.173052]
[1723763739718,0.07947552,57790.0,57787.0,0.173048]
[1723763739929,0.076,57790.0,57788.0,0.173045]
[1723763740139,0.076,57790.0,57785.0,0.17155454]
[1723763740392,0.076,57790.0,57788.0,0.173043]
[1723763741027,0.076,57790.0,57785.0,0.17155454]
[1723763741237,0.076,57790.0,57786.0,0.346101]
[1723763741446,0.076,57790.0,57788.0,0.173045]
[1723763741860,0.076,57790.0,57764.0,0.05099936]
[1723763742064,0.173046,57788.0,57782.0,0.346127]
[1723763742284,0.173046,57788.0,57773.0,0.1]
[1723763742285,0.1282,57786.0,57783.0,0.173059]
[1723763742498,0.1282,57786.0,57752.0,0.001]
[1723763742499,0.0817,57782.0,57767.0,0.51466362]
[1723763742727,0.0817,57777.0,57770.0,0.17155454]
[1723763742944,0.0817,57777.0,57753.0,0.1451]
[1723763742945,0.346187,57773.0,57753.0,0.1451]
[1723763743153,0.00347552,57772.0,57768.0,0.173105]
[1723763743357,0.00347552,57772.0,57765.0,0.173113]
[1723763743358,0.0798,57769.0,57765.0,0.173113]
[1723763743537,0.00347552,57768.0,57766.0,0.173112]
[1723763743764,0.0798,57769.0,57767.0,0.346218]
[1723763743990,0.0798,57769.0,57768.0,0.86553]
[1723763744229,0.0798,57769.0,57768.0,1.03708454]
[1723763745266,0.0465,57774.0,57771.0,0.346189]
[1723763745267,0.0803,57773.0,57771.0,0.346189]
[1723763745477,0.00347552,57772.0,57771.0,0.17155454]
[1723763745757,0.00347552,57772.0,57771.0,0.34465154]
[1723763745964,0.08377552,57773.0,57771.0,0.34465154]
[1723763746385,0.08377552,57773.0,57768.0,0.173103]
[1723763746623,0.08377552,57773.0,57761.0,0.346251]
[1723763746624,0.47770397,57773.0,57761.0,0.346251]
[1723763746836,0.1292,57769.0,57762.0,0.17155454]
[1723763747045,0.0827,57766.0,57762.0,0.34467654]
[1723763747264,0.00347552,57765.0,57762.0,0.34467654]
[1723763747470,0.0827,57764.0,57755.0,0.346289]
[1723763747677,0.001,57767.0,57757.0,0.173139]
[1723763747678,0.255824,57762.0,57757.0,0.173139]
[1723763747882,0.255824,57762.0,57756.0,0.173139]
[1723763747883,0.255826,57762.0,57756.0,0.173139]
[1723763748106,0.255824,57762.0,57757.0,0.173136]
[1723763748290,0.255824,57762.0,57758.0,0.173135]
[1723763749082,0.255824,57762.0,57757.0,0.173139]
[1723763749302,0.0465,57760.0,57756.0,0.173141]
[1723763749503,0.173134,57759.0,57754.0,0.173145]
[1723763749651,0.173134,57759.0,57752.0,0.346304]
[1723763749652,0.0465,57760.0,57758.0,0.001]
[1723763749857,0.0465,57760.0,57755.0,0.173143]
[1723763750259,0.0465,57760.0,57757.0,0.001]
[1723763750260,0.254033,57759.0,57757.0,0.001]
[1723763750484,0.254033,57759.0,57755.0,0.173143]
[1723763750683,0.254033,57759.0,57752.0,0.17155454]
[1723763750684,0.00347552,57758.0,57752.0,0.17155454]
[1723763751041,0.17661152,57758.0,57754.0,0.173147]
[1723763751448,0.00347552,57758.0,57753.0,0.3463]
[1723763751669,0.00347552,57758.0,57754.0,0.173147]
[1723763752958,0.002,57758.0,57753.0,0.3463]
[1723763753197,0.002,57758.0,57757.0,0.865695]
[1723763753356,0.002,57758.0,57757.0,1.03724954]
[1723763753876,0.002,57759.0,57757.0,1.03724954]
[1723763753877,0.002,57759.0,57758.0,0.86568]
[1723763754087,0.002,57759.0,57758.0,1.10283454]
[1723763754312,0.002,57759.0,57758.0,1.44910654]
[1723763754517,0.002,57759.0,57758.0,1.38350654]
[1723763754860,0.002,57759.0,57758.0,1.03723454]
[1723763755466,0.4681,57767.0,57758.0,1.03723454]
[1723763755467,0.641209,57767.0,57761.0,0.346252]
[1723763755740,0.173113,57766.0,57761.0,0.173126]
[1723763756357,0.173113,57766.0,57759.0,0.346261]
[1723763756358,0.173113,57766.0,57762.0,0.173123]
[1723763756574,0.4681,57767.0,57764.0,0.173117]
[1723763756781,0.4701,57767.0,57764.0,0.173117]
[1723763757006,0.002,57766.0,57765.0,0.173115]
[1723763757243,0.002,57766.0,57765.0,0.519345]
[1723763757476,0.004,57766.0,57765.0,0.519345]
[1723763758422,0.002,57766.0,57765.0,0.173115]
[1723763759066,0.0773,57769.0,57766.0,0.173111]
[1723763759211,0.0773,57769.0,57767.0,0.173109]
[1723763759417,0.0773,57769.0,57766.0,0.173111]
[1723763760260,0.254405,57769.0,57767.0,0.001]
[1723763760506,0.3537341,57769.0,57767.0,0.001]
[1723763760678,0.173106,57768.0,57767.0,0.001]
[1723763761316,0.173109,57767.0,57766.0,0.001]
[1723763761830,0.519327,57767.0,57766.0,0.001]
[1723763762001,0.173113,57766.0,57762.0,0.173123]
[1723763762850,0.173113,57766.0,57761.0,0.173125]
[1723763763062,0.173115,57765.0,57761.0,0.173125]
[1723763763273,0.173115,57765.0,57762.0,0.001]
[1723763764905,0.173115,57765.0,57761.0,0.173125]
[1723763765325,0.004,57765.0,57761.0,0.001]
[1723763765521,0.05253107,57775.0,57733.0,0.0009031]
[1723763765522,0.002,57766.0,57765.0,0.173115]
[1723763765755,0.002,57766.0,57765.0,0.34466954]
[1723763766197,0.0826,57767.0,57766.0,0.173112]
[1723763766330,0.077,57771.0,57765.0,0.51778054]
[1723763766534,0.077,57771.0,57768.0,0.173105]
[1723763767597,0.077,57771.0,57769.0,0.17155454]
[1723763767805,0.4681,57776.0,57769.0,0.17155454]
[1723763767806,0.0801,57775.0,57772.0,0.173092]
[1723763768013,0.0801,57775.0,57773.0,0.17309]
[1723763768671,0.4681,57776.0,57771.0,0.346194]
[1723763768902,0.4681,57776.0,57774.0,0.173087]
[1723763769109,0.253276,57778.0,57774.0,0.173087]
[1723763769316,0.173079,57777.0,57773.0,0.17309]
[1723763769729,0.173085,57775.0,57769.0,0.346204]
[1723763769932,0.00347552,57776.0,57769.0,0.1731]
[1723763769933,0.003,57771.0,57769.0,0.1731]
[1723763770201,0.003,57771.0,57768.0,0.173105]
[1723763770202,0.00647552,57771.0,57768.0,0.173105]
[1723763770410,0.00647552,57771.0,57769.0,0.173102]
[1723763770613,0.003,57771.0,57769.0,0.173102]
[1723763771646,0.173091,57773.0,57769.0,0.173102]
[1723763771855,0.346177,57774.0,57765.0,0.346229]
[1723763772063,0.346177,57774.0,57773.0,0.001]
[1723763772064,0.519265,57774.0,57773.0,0.001]
[1723763772281,0.173088,57774.0,57773.0,0.001]
[1723763772464,0.173092,57773.0,57769.0,0.173101]
[1723763772891,0.002,57771.0,57769.0,0.175101]
[1723763773111,0.002,57771.0,57769.0,0.174101]
[1723763773335,0.173092,57773.0,57769.0,0.173101]
[1723763773555,0.173094,57772.0,57768.0,0.173105]
[1723763774022,0.519288,57772.0,57767.0,0.173107]
[1723763774238,0.173096,57772.0,57768.0,0.173105]
[1723763775001,0.173098,57771.0,57767.0,0.173108]
[1723763775214,0.348176,57774.0,57768.0,0.173105]
[1723763775215,0.0796,57770.0,57768.0,0.173105]
[1723763775413,0.0796,57770.0,57769.0,0.002]
[1723763775638,0.0796,57770.0,57769.0,0.001]
[1723763775639,0.34685312,57770.0,57769.0,0.001]
[1723763775838,0.174103,57769.0,57768.0,0.001]
[1723763776100,0.59898452,57769.0,57768.0,0.001]
[1723763776300,0.59898452,57769.0,57762.0,0.0009042]
[1723763776301,0.248321,57763.0,57762.0,0.0009042]
[1723763776479,0.59803852,57763.0,57762.0,0.0009042]
[1723763777038,0.94428052,57763.0,57762.0,0.0009042]
[1723763777243,0.99078052,57763.0,57762.0,0.0009042]
[1723763778777,0.99278052,57763.0,57762.0,0.0019042]
[1723763779386,0.99578052,57763.0,57762.0,0.0029042]
[1723763779590,1.74033298,57763.0,57762.0,0.0029042]
[1723763779786,0.595535,57755.0,57754.0,0.0009042]
[1723763780004,0.249245,57755.0,57754.0,0.0009042]
[1723763780265,0.942825,57755.0,57754.0,0.0009042]
[1723763781945,0.957825,57755.0,57754.0,0.0019042]
[1723763782143,0.957825,57755.0,57754.0,0.0009042]